[Event "Titled Tuesday Blitz December 7 2021"]
[White "Halkias, Stelios"]
[Black "Mezentsev, Ivan"]
[WhiteFideId "4201809"]
[BlackFideId "13706195"]
[WhiteElo "2575"]
[BlackElo "2295"]
[Result "1-0"]
[Round "11"]
[TimeControl "180+1"]
[Date "2021.12.07"]
[WhiteClock "0:00:05"]
[BlackClock "0:00:03"]

1. d4 {[%clk 0:03:00]}  Nf6 {[%clk 0:02:59]} 2. c4 {[%clk 0:03:01]}  g6 {[%clk 0:02:59]} 3. Nc3 {[%clk 0:03:00]}  Bg7 {[%clk 0:02:59]} 4. e4 {[%clk 0:03:00]}  d6 {[%clk 0:03:00]} 5. Nf3 {[%clk 0:03:00]}  O-O {[%clk 0:03:00]} 6. Be2 {[%clk 0:03:00]}  e5 {[%clk 0:03:01]} 7. Be3 {[%clk 0:03:00]}  Ng4 {[%clk 0:02:59]} 8. Bg5 {[%clk 0:03:00]}  f6 {[%clk 0:03:00]} 9. Bh4 {[%clk 0:03:00]}  Nd7 {[%clk 0:02:58]} 10. O-O {[%clk 0:02:53]}  Nh6 {[%clk 0:02:56]} 11. Qd2 {[%clk 0:02:47]}  Nf7 {[%clk 0:02:55]} 12. Rad1 {[%clk 0:02:45]}  h5 {[%clk 0:02:46]} 13. Bg3 {[%clk 0:02:34]}  Bh6 {[%clk 0:02:45]} 14. Qc2 {[%clk 0:02:34]}  c6 {[%clk 0:02:37]} 15. h3 {[%clk 0:02:29]}  Qe7 {[%clk 0:02:34]} 16. d5 {[%clk 0:02:06]}  c5 {[%clk 0:02:32]} 17. Ne1 {[%clk 0:02:01]}  a6 {[%clk 0:02:26]} 18. Nd3 {[%clk 0:02:00]}  Kg7 {[%clk 0:02:08]} 19. a3 {[%clk 0:01:52]}  b6 {[%clk 0:01:22]} 20. Rde1 {[%clk 0:01:51]}  Nd8 {[%clk 0:01:10]} 21. b4 {[%clk 0:01:50]}  cxb4 {[%clk 0:01:08]} 22. axb4 {[%clk 0:01:49]}  a5 {[%clk 0:01:08]} 23. Ra1 {[%clk 0:01:38]}  Bb7 {[%clk 0:01:07]} 24. Nb5 {[%clk 0:01:37]}  axb4 {[%clk 0:01:05]} 25. Rxa8 {[%clk 0:01:34]}  Bxa8 {[%clk 0:01:05]} 26. Ra1 {[%clk 0:01:34]}  Bb7 {[%clk 0:01:01]} 27. Nxb4 {[%clk 0:01:28]}  Nc5 {[%clk 0:00:58]} 28. Ra7 {[%clk 0:01:25]}  Rf7 {[%clk 0:00:48]} 29. Nc6 {[%clk 0:01:19]}  Qd7 {[%clk 0:00:48]} 30. Nb4 {[%clk 0:00:54]}  Re7 {[%clk 0:00:44]} 31. f3 {[%clk 0:00:52]}  Be3+ {[%clk 0:00:38]} 32. Kh1 {[%clk 0:00:52]}  f5 {[%clk 0:00:36]} 33. Ra3 {[%clk 0:00:50]}  f4 {[%clk 0:00:35]} 34. Bh4 {[%clk 0:00:50]}  Re8 {[%clk 0:00:31]} 35. Ra7 {[%clk 0:00:48]}  Nf7 {[%clk 0:00:30]} 36. Nc6 {[%clk 0:00:41]}  Ra8 {[%clk 0:00:27]} 37. Be1 {[%clk 0:00:33]}  Rxa7 {[%clk 0:00:25]} 38. Nbxa7 {[%clk 0:00:33]}  g5 {[%clk 0:00:21]} 39. Bc3 {[%clk 0:00:33]}  Kf6 {[%clk 0:00:17]} 40. Qd1 {[%clk 0:00:32]}  Nh6 {[%clk 0:00:17]} 41. Qa1 {[%clk 0:00:32]}  Qe8 {[%clk 0:00:15]} 42. Nb5 {[%clk 0:00:30]}  Bxc6 {[%clk 0:00:15]} 43. dxc6 {[%clk 0:00:29]}  Qxc6 {[%clk 0:00:15]} 44. Qa7 {[%clk 0:00:28]}  Nf7 {[%clk 0:00:15]} 45. Qb8 {[%clk 0:00:28]}  Na4 {[%clk 0:00:13]} 46. Bb4 {[%clk 0:00:23]}  Nb2 {[%clk 0:00:12]} 47. Qg8 {[%clk 0:00:15]}  Nxc4 {[%clk 0:00:12]} 48. Nc3 {[%clk 0:00:11]}  Nd2 {[%clk 0:00:04]} 49. Nd5+ {[%clk 0:00:11]}  Ke6 {[%clk 0:00:04]} 50. Qg6+ {[%clk 0:00:11]}  Kd7 {[%clk 0:00:04]} 51. Qxf7+ {[%clk 0:00:11]}  Kd8 {[%clk 0:00:05]} 52. Qf8+ {[%clk 0:00:11]}  Kd7 {[%clk 0:00:05]} 53. Qf5+ {[%clk 0:00:11]}  Kd8 {[%clk 0:00:05]} 54. Qxg5+ {[%clk 0:00:11]}  Kd7 {[%clk 0:00:04]} 55. Qg7+ {[%clk 0:00:11]}  Kd8 {[%clk 0:00:04]} 56. Qf8+ {[%clk 0:00:11]}  Kd7 {[%clk 0:00:04]} 57. Qf7+ {[%clk 0:00:10]}  Kd8 {[%clk 0:00:04]} 58. Qg8+ {[%clk 0:00:08]}  Kd7 {[%clk 0:00:04]} 59. Qh7+ {[%clk 0:00:08]}  Kd8 {[%clk 0:00:04]} 60. Qh8+ {[%clk 0:00:08]}  Kd7 {[%clk 0:00:04]} 61. Bxd2 {[%clk 0:00:07]}  Bxd2 {[%clk 0:00:04]} 62. Qg7+ {[%clk 0:00:06]}  Kd8 {[%clk 0:00:04]} 63. Qf8+ {[%clk 0:00:05]}  Kd7 {[%clk 0:00:05]} 64. Bb5 {[%clk 0:00:05]}  Qxb5 {[%clk 0:00:03]} 65. Qe7+ {[%clk 0:00:05]} 1-0


[Site "https://www.chess.com"]

[Event "Titled Tuesday Blitz December 7 2021"]
[White "Harshavardhan G B"]
[Black "Sinitsina, Anastassia"]
[WhiteFideId "25059009"]
[BlackFideId "4504640"]
[WhiteElo "1825"]
[BlackElo "2161"]
[Result "0-1"]
[Round "11"]
[TimeControl "180+1"]
[Date "2021.12.07"]
[WhiteClock "0:00:43"]
[BlackClock "0:00:32"]

1. Nf3 {[%clk 0:02:59]}  Nf6 {[%clk 0:02:59]} 2. c4 {[%clk 0:02:59]}  g6 {[%clk 0:02:59]} 3. Nc3 {[%clk 0:02:58]}  Bg7 {[%clk 0:02:59]} 4. e4 {[%clk 0:02:56]}  d6 {[%clk 0:03:00]} 5. h4 {[%clk 0:02:52]}  c5 {[%clk 0:02:56]} 6. d3 {[%clk 0:02:51]}  Nc6 {[%clk 0:02:55]} 7. Bg5 {[%clk 0:02:50]}  h5 {[%clk 0:02:49]} 8. Qd2 {[%clk 0:02:48]}  Rb8 {[%clk 0:02:47]} 9. g3 {[%clk 0:02:48]}  a6 {[%clk 0:02:46]} 10. Bg2 {[%clk 0:02:47]}  b5 {[%clk 0:02:43]} 11. O-O {[%clk 0:02:47]}  Bd7 {[%clk 0:02:37]} 12. Nd5 {[%clk 0:02:46]}  bxc4 {[%clk 0:02:21]} 13. Bxf6 {[%clk 0:02:44]}  exf6 {[%clk 0:02:17]} 14. dxc4 {[%clk 0:02:44]}  O-O {[%clk 0:02:15]} 15. Rad1 {[%clk 0:02:42]}  f5 {[%clk 0:02:13]} 16. exf5 {[%clk 0:02:40]}  Rxb2 {[%clk 0:02:10]} 17. Qf4 {[%clk 0:02:38]}  Bxf5 {[%clk 0:02:08]} 18. Ne3 {[%clk 0:02:37]}  Be6 {[%clk 0:01:51]} 19. Ng5 {[%clk 0:02:34]}  Nd4 {[%clk 0:01:48]} 20. Nxe6 {[%clk 0:02:33]}  Ne2+ {[%clk 0:01:20]} 21. Kh2 {[%clk 0:02:31]}  Nxf4 {[%clk 0:01:20]} 22. Nxd8 {[%clk 0:02:31]}  Nxg2 {[%clk 0:01:21]} 23. Kxg2 {[%clk 0:01:59]}  Rxd8 {[%clk 0:01:20]} 24. Nd5 {[%clk 0:01:59]}  Bd4 {[%clk 0:01:19]} 25. Kh3 {[%clk 0:01:57]}  Kg7 {[%clk 0:01:16]} 26. f4 {[%clk 0:01:56]}  Rxa2 {[%clk 0:01:15]} 27. Rde1 {[%clk 0:01:54]}  Rb8 {[%clk 0:01:12]} 28. f5 {[%clk 0:01:50]}  Rbb2 {[%clk 0:01:12]} 29. f6+ {[%clk 0:01:50]}  Bxf6 {[%clk 0:01:08]} 30. Rh1 {[%clk 0:01:51]}  Bd4 {[%clk 0:01:06]} 31. Nf4 {[%clk 0:01:50]}  Rb3 {[%clk 0:01:02]} 32. Ref1 {[%clk 0:01:45]}  Be5 {[%clk 0:01:00]} 33. Rhg1 {[%clk 0:01:43]}  Raa3 {[%clk 0:01:00]} 34. Ne2 {[%clk 0:01:42]}  Re3 {[%clk 0:00:59]} 35. Nf4 {[%clk 0:01:42]}  Rac3 {[%clk 0:00:58]} 36. Kh2 {[%clk 0:01:32]}  Rxc4 {[%clk 0:00:59]} 37. Rg2 {[%clk 0:01:30]}  Bxf4 {[%clk 0:00:57]} 38. gxf4 {[%clk 0:01:31]}  Rcc3 {[%clk 0:00:56]} 39. Rd1 {[%clk 0:01:22]}  Rh3+ {[%clk 0:00:56]} 40. Kg1 {[%clk 0:01:22]}  Rxh4 {[%clk 0:00:56]} 41. Rxd6 {[%clk 0:01:20]}  Rc1+ {[%clk 0:00:56]} 42. Kf2 {[%clk 0:01:19]}  Rxf4+ {[%clk 0:00:56]} 43. Ke3 {[%clk 0:01:20]}  Rf6 {[%clk 0:00:57]} 44. Rd7 {[%clk 0:01:21]}  c4 {[%clk 0:00:55]} 45. Rc7 {[%clk 0:01:20]}  c3 {[%clk 0:00:55]} 46. Kd3 {[%clk 0:01:21]}  Rd6+ {[%clk 0:00:54]} 47. Kc4 {[%clk 0:01:17]}  a5 {[%clk 0:00:53]} 48. Rf2 {[%clk 0:01:14]}  Rf6 {[%clk 0:00:51]} 49. Ra2 {[%clk 0:01:14]}  Rf5 {[%clk 0:00:51]} 50. Kd3 {[%clk 0:01:12]}  h4 {[%clk 0:00:51]} 51. Rh2 {[%clk 0:01:12]}  Rf3+ {[%clk 0:00:49]} 52. Ke4 {[%clk 0:01:11]}  Rg3 {[%clk 0:00:45]} 53. Rf2 {[%clk 0:01:00]}  a4 {[%clk 0:00:43]} 54. Rfxf7+ {[%clk 0:00:56]}  Kh6 {[%clk 0:00:43]} 55. Rh7+ {[%clk 0:00:48]}  Kg5 {[%clk 0:00:43]} 56. Rc6 {[%clk 0:00:48]}  a3 {[%clk 0:00:38]} 57. Rg7 {[%clk 0:00:48]}  Kh5 {[%clk 0:00:37]} 58. Rh7+ {[%clk 0:00:48]}  Kg4 {[%clk 0:00:37]} 59. Rxg6+ {[%clk 0:00:46]}  Kh3 {[%clk 0:00:37]} 60. Rgh6 {[%clk 0:00:47]}  Rg4+ {[%clk 0:00:37]} 61. Kd3 {[%clk 0:00:46]}  a2 {[%clk 0:00:37]} 62. Ra7 {[%clk 0:00:45]}  a1=Q {[%clk 0:00:36]} 63. Rxa1 {[%clk 0:00:46]}  Rxa1 {[%clk 0:00:36]} 64. Kxc3 {[%clk 0:00:46]}  Kg2 {[%clk 0:00:35]} 65. Kd2 {[%clk 0:00:47]}  h3 {[%clk 0:00:34]} 66. Re6 {[%clk 0:00:47]}  h2 {[%clk 0:00:34]} 67. Re2+ {[%clk 0:00:47]}  Kh3 {[%clk 0:00:34]} 68. Re3+ {[%clk 0:00:48]}  Rg3 {[%clk 0:00:34]} 69. Re2 {[%clk 0:00:44]}  Ra2+ {[%clk 0:00:33]} 70. Ke1 {[%clk 0:00:43]}  h1=Q+ {[%clk 0:00:33]} 71. Kf2 {[%clk 0:00:43]}  Qf3+ {[%clk 0:00:32]} 72. Ke1 {[%clk 0:00:43]}  Rg1# {[%clk 0:00:32]} 0-1


[Site "https://www.chess.com"]

[Event "Titled Tuesday Blitz December 7 2021"]
[White "Holt, Conrad"]
[Black "Vidit, Santosh Gujrathi"]
[WhiteFideId "2034387"]
[BlackFideId "5029465"]
[WhiteElo "2586"]
[BlackElo "2628"]
[Result "0-1"]
[Round "11"]
[TimeControl "180+1"]
[Date "2021.12.07"]
[WhiteClock "0:01:39"]
[BlackClock "0:00:48"]

1. d4 {[%clk 0:03:00]}  Nf6 {[%clk 0:02:59]} 2. c4 {[%clk 0:03:01]}  e6 {[%clk 0:02:59]} 3. Nc3 {[%clk 0:03:01]}  Bb4 {[%clk 0:02:59]} 4. Qc2 {[%clk 0:03:01]}  O-O {[%clk 0:02:58]} 5. e4 {[%clk 0:03:01]}  d5 {[%clk 0:02:57]} 6. e5 {[%clk 0:03:01]}  Ne4 {[%clk 0:02:58]} 7. Bd3 {[%clk 0:03:02]}  c5 {[%clk 0:02:57]} 8. Nf3 {[%clk 0:03:02]}  cxd4 {[%clk 0:02:57]} 9. Nxd4 {[%clk 0:03:03]}  Nd7 {[%clk 0:02:57]} 10. Bf4 {[%clk 0:03:03]}  Qh4 {[%clk 0:02:57]} 11. g3 {[%clk 0:03:03]}  Qh5 {[%clk 0:02:55]} 12. f3 {[%clk 0:02:55]}  Bxc3+ {[%clk 0:02:32]} 13. bxc3 {[%clk 0:02:54]}  Nec5 {[%clk 0:02:33]} 14. g4 {[%clk 0:02:42]}  Nxd3+ {[%clk 0:02:33]} 15. Qxd3 {[%clk 0:02:41]}  dxc4 {[%clk 0:02:33]} 16. Qxc4 {[%clk 0:02:32]}  Qh3 {[%clk 0:01:52]} 17. Kf2 {[%clk 0:02:22]}  Nb6 {[%clk 0:01:49]} 18. Qd3 {[%clk 0:02:13]}  Bd7 {[%clk 0:01:43]} 19. Rag1 {[%clk 0:02:07]}  Qh4+ {[%clk 0:01:38]} 20. Bg3 {[%clk 0:02:07]}  Qe7 {[%clk 0:01:38]} 21. h4 {[%clk 0:02:05]}  Rac8 {[%clk 0:01:37]} 22. h5 {[%clk 0:01:57]}  Qa3 {[%clk 0:01:34]} 23. Rc1 {[%clk 0:01:57]}  Qxa2+ {[%clk 0:01:10]} 24. Rc2 {[%clk 0:01:55]}  Qc4 {[%clk 0:01:10]} 25. Qd2 {[%clk 0:01:54]}  Nd5 {[%clk 0:00:57]} 26. h6 {[%clk 0:01:53]}  g6 {[%clk 0:00:57]} 27. Ra1 {[%clk 0:01:44]}  a6 {[%clk 0:00:55]} 28. Ra5 {[%clk 0:01:41]}  Bb5 {[%clk 0:00:49]} 29. Ra3 {[%clk 0:01:39]}  Qf1# {[%clk 0:00:48]} 0-1


[Site "https://www.chess.com"]

[Event "Titled Tuesday Blitz December 7 2021"]
[White "Juhasz, Agoston"]
[Black "Bures, Vit"]
[WhiteFideId "778346"]
[BlackFideId "309052"]
[WhiteElo "2211"]
[BlackElo "2132"]
[Result "1-0"]
[Round "11"]
[TimeControl "180+1"]
[Date "2021.12.07"]
[WhiteClock "0:00:02"]
[BlackClock "0:00:01"]

1. e4 {[%clk 0:03:00]}  e5 {[%clk 0:02:59]} 2. d4 {[%clk 0:03:00]}  exd4 {[%clk 0:02:58]} 3. c3 {[%clk 0:03:00]}  d5 {[%clk 0:02:58]} 4. exd5 {[%clk 0:02:55]}  Qxd5 {[%clk 0:02:59]} 5. Nf3 {[%clk 0:02:52]}  Nc6 {[%clk 0:02:59]} 6. Be2 {[%clk 0:02:47]}  Nf6 {[%clk 0:02:56]} 7. O-O {[%clk 0:02:42]}  Bg4 {[%clk 0:02:52]} 8. Nxd4 {[%clk 0:02:37]}  Nxd4 {[%clk 0:02:23]} 9. Bxg4 {[%clk 0:02:34]}  Ne6 {[%clk 0:02:17]} 10. Bf3 {[%clk 0:01:57]}  Qxd1 {[%clk 0:02:14]} 11. Rxd1 {[%clk 0:01:58]}  c6 {[%clk 0:02:12]} 12. a4 {[%clk 0:01:50]}  Be7 {[%clk 0:02:07]} 13. Na3 {[%clk 0:01:44]}  O-O {[%clk 0:02:05]} 14. Nc4 {[%clk 0:01:44]}  Rad8 {[%clk 0:02:02]} 15. Be3 {[%clk 0:01:42]}  Bc5 {[%clk 0:01:59]} 16. Na5 {[%clk 0:01:32]}  Bxe3 {[%clk 0:01:52]} 17. fxe3 {[%clk 0:01:33]}  Rb8 {[%clk 0:01:47]} 18. b4 {[%clk 0:01:28]}  Ng5 {[%clk 0:01:42]} 19. Rd4 {[%clk 0:01:10]}  Rfe8 {[%clk 0:01:36]} 20. Re1 {[%clk 0:00:49]}  Nge4 {[%clk 0:01:32]} 21. c4 {[%clk 0:00:47]}  h6 {[%clk 0:01:27]} 22. b5 {[%clk 0:00:37]}  cxb5 {[%clk 0:01:24]} 23. axb5 {[%clk 0:00:38]}  g5 {[%clk 0:01:12]} 24. h3 {[%clk 0:00:37]}  h5 {[%clk 0:01:09]} 25. Ra1 {[%clk 0:00:36]}  g4 {[%clk 0:01:09]} 26. hxg4 {[%clk 0:00:37]}  hxg4 {[%clk 0:01:09]} 27. Bxe4 {[%clk 0:00:34]}  Rxe4 {[%clk 0:00:58]} 28. Rxe4 {[%clk 0:00:34]}  Nxe4 {[%clk 0:00:59]} 29. Nb3 {[%clk 0:00:34]}  g3 {[%clk 0:00:48]} 30. Rxa7 {[%clk 0:00:32]}  Nd6 {[%clk 0:00:44]} 31. Ra4 {[%clk 0:00:25]}  Nf5 {[%clk 0:00:44]} 32. Nd4 {[%clk 0:00:17]}  Nxe3 {[%clk 0:00:38]} 33. Ra3 {[%clk 0:00:16]}  Nxc4 {[%clk 0:00:36]} 34. Rxg3+ {[%clk 0:00:16]}  Kf8 {[%clk 0:00:36]} 35. Nf5 {[%clk 0:00:16]}  Ra8 {[%clk 0:00:19]} 36. Rh3 {[%clk 0:00:15]}  Ra1+ {[%clk 0:00:19]} 37. Kf2 {[%clk 0:00:15]}  Ke8 {[%clk 0:00:18]} 38. Rh4 {[%clk 0:00:12]}  Ra2+ {[%clk 0:00:16]} 39. Kf1 {[%clk 0:00:10]}  Ra1+ {[%clk 0:00:13]} 40. Ke2 {[%clk 0:00:09]}  Ra2+ {[%clk 0:00:10]} 41. Kd3 {[%clk 0:00:08]}  Ne5+ {[%clk 0:00:10]} 42. Ke4 {[%clk 0:00:08]}  Re2+ {[%clk 0:00:08]} 43. Kd5 {[%clk 0:00:07]}  Ng6 {[%clk 0:00:07]} 44. Ra4 {[%clk 0:00:03]}  Rd2+ {[%clk 0:00:06]} 45. Ke4 {[%clk 0:00:03]}  Rxg2 {[%clk 0:00:06]} 46. Ra7 {[%clk 0:00:02]}  Rg4+ {[%clk 0:00:02]} 47. Kd5 {[%clk 0:00:02]}  Rg1 {[%clk 0:00:01]} 48. Nd6+ {[%clk 0:00:02]}  Ke7 {[%clk 0:00:01]} 49. Rxb7+ {[%clk 0:00:03]}  Kf6 {[%clk 0:00:01]} 50. Rxf7+ {[%clk 0:00:03]}  Kg5 {[%clk 0:00:02]} 51. Rf5+ {[%clk 0:00:04]}  Kg4 {[%clk 0:00:01]} 52. Rf2 {[%clk 0:00:03]}  Rd1+ {[%clk 0:00:01]} 53. Kc6 {[%clk 0:00:03]}  Ne7+ {[%clk 0:00:02]} 54. Kd7 {[%clk 0:00:03]}  Nd5 {[%clk 0:00:01]} 55. Rb2 {[%clk 0:00:02]} 1-0


[Site "https://www.chess.com"]

[Event "Titled Tuesday Blitz December 7 2021"]
[White "Kamsky, Gata"]
[Black "Korchmar, Vasiliy"]
[WhiteFideId "2000024"]
[BlackFideId "24131750"]
[WhiteElo "2645"]
[BlackElo "2370"]
[Result "0-1"]
[Round "11"]
[TimeControl "180+1"]
[Date "2021.12.07"]
[WhiteClock "0:00:26"]
[BlackClock "0:00:03"]

1. e4 {[%clk 0:03:00]}  c5 {[%clk 0:02:59]} 2. Nc3 {[%clk 0:02:55]}  d6 {[%clk 0:02:58]} 3. Bc4 {[%clk 0:02:54]}  e6 {[%clk 0:02:56]} 4. Nf3 {[%clk 0:02:53]}  Nf6 {[%clk 0:02:53]} 5. O-O {[%clk 0:02:53]}  Be7 {[%clk 0:02:53]} 6. d3 {[%clk 0:02:50]}  O-O {[%clk 0:02:52]} 7. a3 {[%clk 0:02:50]}  Nc6 {[%clk 0:02:46]} 8. Ba2 {[%clk 0:02:50]}  b6 {[%clk 0:02:44]} 9. Ne2 {[%clk 0:02:47]}  Bb7 {[%clk 0:02:43]} 10. Ng3 {[%clk 0:02:47]}  Rc8 {[%clk 0:02:38]} 11. c3 {[%clk 0:02:43]}  h6 {[%clk 0:02:23]} 12. Re1 {[%clk 0:02:38]}  Ne5 {[%clk 0:02:16]} 13. d4 {[%clk 0:02:31]}  Nxf3+ {[%clk 0:02:11]} 14. Qxf3 {[%clk 0:02:31]}  cxd4 {[%clk 0:02:12]} 15. cxd4 {[%clk 0:02:30]}  d5 {[%clk 0:02:02]} 16. e5 {[%clk 0:02:29]}  Ne4 {[%clk 0:02:03]} 17. Qg4 {[%clk 0:02:21]}  f5 {[%clk 0:01:41]} 18. exf6 {[%clk 0:02:20]}  Rxf6 {[%clk 0:01:38]} 19. Nh5 {[%clk 0:02:11]}  Rf7 {[%clk 0:01:30]} 20. Bxh6 {[%clk 0:02:09]}  Nxf2 {[%clk 0:01:25]} 21. Qg6 {[%clk 0:02:03]}  Bf8 {[%clk 0:01:02]} 22. Bg5 {[%clk 0:01:49]}  Be7 {[%clk 0:00:30]} 23. Bh6 {[%clk 0:01:43]}  Bf8 {[%clk 0:00:29]} 24. Rxe6 {[%clk 0:01:43]}  Qh4 {[%clk 0:00:21]} 25. Bf4 {[%clk 0:00:38]}  Rxf4 {[%clk 0:00:07]} 26. Nxf4 {[%clk 0:00:35]}  Qxf4 {[%clk 0:00:08]} 27. Re2 {[%clk 0:00:31]}  Ng4 {[%clk 0:00:04]} 28. h3 {[%clk 0:00:26]}  Qh2+ {[%clk 0:00:03]} 0-1


[Site "https://www.chess.com"]

[Event "Titled Tuesday Blitz December 7 2021"]
[White "Kepeshchuk, Mykhaylo"]
[Black "Batbold, Nyamsuren"]
[WhiteFideId "14113139"]
[BlackFideId "4903331"]
[WhiteElo "2279"]
[BlackElo "1816"]
[Result "1-0"]
[Round "11"]
[TimeControl "180+1"]
[Date "2021.12.07"]
[WhiteClock "0:00:04"]
[BlackClock "0:00:02"]

1. d4 {[%clk 0:03:00]}  d5 {[%clk 0:02:59]} 2. c4 {[%clk 0:02:59]}  c6 {[%clk 0:03:00]} 3. Nf3 {[%clk 0:02:59]}  Nf6 {[%clk 0:03:00]} 4. g3 {[%clk 0:03:00]}  Bg4 {[%clk 0:02:59]} 5. Bg2 {[%clk 0:03:00]}  e6 {[%clk 0:02:58]} 6. O-O {[%clk 0:03:01]}  Nbd7 {[%clk 0:02:58]} 7. Nc3 {[%clk 0:03:01]}  Be7 {[%clk 0:02:57]} 8. Qb3 {[%clk 0:03:01]}  Qb6 {[%clk 0:02:57]} 9. c5 {[%clk 0:03:02]}  Qxb3 {[%clk 0:02:57]} 10. axb3 {[%clk 0:03:03]}  O-O {[%clk 0:02:58]} 11. b4 {[%clk 0:03:03]}  a6 {[%clk 0:02:58]} 12. Re1 {[%clk 0:02:58]}  h6 {[%clk 0:02:56]} 13. Nd2 {[%clk 0:02:54]}  Bf5 {[%clk 0:02:54]} 14. e4 {[%clk 0:02:53]}  dxe4 {[%clk 0:02:55]} 15. Ndxe4 {[%clk 0:02:54]}  Nd5 {[%clk 0:02:55]} 16. Nxd5 {[%clk 0:02:51]}  cxd5 {[%clk 0:02:56]} 17. Nc3 {[%clk 0:02:50]}  Bf6 {[%clk 0:02:47]} 18. Be3 {[%clk 0:02:48]}  Rfc8 {[%clk 0:02:30]} 19. b5 {[%clk 0:02:47]}  axb5 {[%clk 0:02:27]} 20. Nxb5 {[%clk 0:02:48]}  Be7 {[%clk 0:02:02]} 21. Bf4 {[%clk 0:02:36]}  Bd3 {[%clk 0:01:57]} 22. Nd6 {[%clk 0:02:16]}  Bxd6 {[%clk 0:01:54]} 23. Bxd6 {[%clk 0:02:15]}  Nf6 {[%clk 0:01:39]} 24. b4 {[%clk 0:02:13]}  Ne4 {[%clk 0:01:36]} 25. Bf4 {[%clk 0:02:08]}  Nc3 {[%clk 0:01:35]} 26. Be3 {[%clk 0:02:03]}  Nb5 {[%clk 0:01:25]} 27. f4 {[%clk 0:01:51]}  Kf8 {[%clk 0:01:22]} 28. Kf2 {[%clk 0:01:47]}  Na3 {[%clk 0:01:20]} 29. Red1 {[%clk 0:01:36]}  Bc4 {[%clk 0:01:17]} 30. Rdc1 {[%clk 0:01:18]}  Nb5 {[%clk 0:01:12]} 31. g4 {[%clk 0:00:49]}  Ke7 {[%clk 0:01:08]} 32. f5 {[%clk 0:00:44]}  Kd7 {[%clk 0:01:01]} 33. Kg3 {[%clk 0:00:41]}  g6 {[%clk 0:00:55]} 34. fxg6 {[%clk 0:00:38]}  fxg6 {[%clk 0:00:54]} 35. Ra5 {[%clk 0:00:19]}  Rxa5 {[%clk 0:00:46]} 36. bxa5 {[%clk 0:00:20]}  Ra8 {[%clk 0:00:44]} 37. Ra1 {[%clk 0:00:19]}  Bd3 {[%clk 0:00:34]} 38. h4 {[%clk 0:00:17]}  Kc6 {[%clk 0:00:27]} 39. Bf3 {[%clk 0:00:15]}  Bc4 {[%clk 0:00:21]} 40. Bd1 {[%clk 0:00:14]}  Nc3 {[%clk 0:00:19]} 41. Bf3 {[%clk 0:00:13]}  Be2 {[%clk 0:00:17]} 42. Bxh6 {[%clk 0:00:12]}  Bxf3 {[%clk 0:00:14]} 43. Kxf3 {[%clk 0:00:13]}  e5 {[%clk 0:00:14]} 44. dxe5 {[%clk 0:00:12]}  Kxc5 {[%clk 0:00:15]} 45. e6 {[%clk 0:00:12]}  Kd6 {[%clk 0:00:14]} 46. Re1 {[%clk 0:00:08]}  Ne4 {[%clk 0:00:15]} 47. h5 {[%clk 0:00:07]}  gxh5 {[%clk 0:00:14]} 48. gxh5 {[%clk 0:00:08]}  Rh8 {[%clk 0:00:14]} 49. Bf4+ {[%clk 0:00:08]}  Kxe6 {[%clk 0:00:14]} 50. h6 {[%clk 0:00:09]}  Kf5 {[%clk 0:00:13]} 51. Rb1 {[%clk 0:00:08]}  Ra8 {[%clk 0:00:10]} 52. Rb5 {[%clk 0:00:08]}  Nc3 {[%clk 0:00:09]} 53. Rc5 {[%clk 0:00:07]}  Na4 {[%clk 0:00:03]} 54. Rxd5+ {[%clk 0:00:07]}  Kg6 {[%clk 0:00:04]} 55. Rb5 {[%clk 0:00:07]}  Nc3 {[%clk 0:00:04]} 56. Rb6+ {[%clk 0:00:06]}  Kf5 {[%clk 0:00:03]} 57. h7 {[%clk 0:00:05]}  Nd5 {[%clk 0:00:03]} 58. Rb5 {[%clk 0:00:05]}  Ke6 {[%clk 0:00:02]} 59. Rxb7 {[%clk 0:00:05]}  Nf6 {[%clk 0:00:02]} 60. Bg5 {[%clk 0:00:04]}  Nd5 {[%clk 0:00:02]} 61. Rg7 {[%clk 0:00:03]}  Rf8+ {[%clk 0:00:02]} 62. Kg4 {[%clk 0:00:03]}  Nf6+ {[%clk 0:00:01]} 63. Bxf6 {[%clk 0:00:03]}  Kxf6 {[%clk 0:00:02]} 64. Rg8 {[%clk 0:00:04]}  Rf7 {[%clk 0:00:02]} 65. h8=Q+ {[%clk 0:00:04]} 1-0


[Site "https://www.chess.com"]